bitfinex-derivatives/quotes_ETHF0:USTF0_20220106
["timestamp","ask_amount","ask_price","bid_price","bid_amount"]
[1641496593931,0.16012663,3437.9,3437.7,8.16977381]
[1641496594133,0.313345,3437.8,3437.7,7.18245615]
[1641496594332,0.505002,3438.0,3437.7,7.18245615]
[1641496594635,0.45201159,3438.2,3437.8,4.0]
[1641496594832,1.3154,3439.2,3437.8,4.0]
[1641496594833,4.00958,3438.5,3437.8,4.0]
[1641496595033,4.46159159,3438.5,3437.8,4.0]
[1641496595233,4.46159159,3438.5,3437.9,0.397182]
[1641496595836,5.91557801,3438.5,3437.9,0.397182]
[1641496597037,5.91557801,3438.5,3438.4,3.05382995]
[1641496597239,6.22892301,3438.5,3438.4,3.05382995]
[1641496597840,6.22892301,3438.5,3438.4,3.43830195]
[1641496597841,5.77691142,3438.5,3438.4,3.43830195]
[1641496598038,5.77691142,3438.5,3438.4,0.384472]
[1641496598239,5.77691142,3438.5,3438.4,0.781654]
[1641496598439,5.77691142,3438.5,3438.4,0.397182]
[1641496598640,7.68291013,3438.5,3438.4,0.397182]
[1641496598940,7.68291013,3438.5,3438.3,1.13807434]
[1641496599743,7.36956513,3438.5,3438.3,1.53525634]
[1641496600140,7.68291013,3438.5,3438.3,1.53525634]
[1641496600342,7.23089854,3438.5,3438.3,1.53525634]
[1641496600941,7.68291013,3438.5,3438.3,1.53525634]
[1641496601342,7.68291013,3438.5,3438.3,1.13807434]
[1641496601943,7.01012301,3438.5,3438.1,3.05382995]
[1641496602245,0.45201159,3438.2,3438.1,3.05382995]
[1641496602443,0.76535659,3438.2,3438.1,3.05382995]
[1641496603343,0.76535659,3438.2,3438.1,1.59942412]
[1641496603743,0.76535659,3438.2,3437.8,4.14086695]
[1641496603944,0.313345,3438.2,3437.8,0.781654]
[1641496604346,0.76535659,3438.2,3437.8,0.781654]
[1641496604945,0.76535659,3438.2,3437.9,1.38807106]
[1641496605145,0.45201159,3438.1,3437.9,1.38807106]
[1641496605545,0.313345,3438.0,3437.9,1.38807106]
[1641496605746,2.45680159,3438.1,3437.9,1.68792606]
[1641496605946,2.45680159,3438.1,3437.8,0.781654]
[1641496606145,0.45201159,3438.0,3437.8,0.781654]
[1641496606346,0.379679,3437.9,3437.8,0.781654]
[1641496606545,0.45201159,3438.0,3437.8,1.015175]
[1641496606746,0.45201159,3438.0,3437.8,0.781654]
[1641496607249,0.379679,3437.9,3437.8,0.781654]
[1641496608648,0.379679,3437.9,3437.8,0.384472]
[1641496609250,0.379679,3437.9,3437.7,3.79911295]
[1641496609652,0.36587475,3438.2,3437.8,0.233521]
[1641496609853,2.48829412,3438.3,3437.9,2.01931766]
[1641496610150,2.48829412,3438.3,3438.0,1.38599815]
[1641496610351,2.00479,3438.5,3438.0,1.38599815]
[1641496610551,2.00479,3438.5,3438.0,0.397182]
[1641496611851,0.36587475,3438.3,3438.2,3.06121238]
[1641496612052,2.00479,3438.5,3438.2,3.84286638]
[1641496612251,0.36587475,3438.3,3438.2,3.44568438]
[1641496613051,0.74555375,3438.3,3437.9,4.63968278]
[1641496613250,1.42135375,3438.3,3437.9,4.63968278]
[1641496613452,0.36587475,3438.0,3437.9,4.63968278]
[1641496613654,0.36587475,3438.0,3437.9,4.87320378]
[1641496613952,0.6758,3438.3,3437.9,4.87320378]
[1641496614154,1.04167475,3438.3,3437.9,4.87320378]
[1641496614653,0.62167475,3438.3,3437.9,4.87320378]
[1641496615454,0.2558,3438.3,3437.9,4.87320378]
[1641496615654,0.2558,3438.3,3437.9,4.24250078]
[1641496616156,0.2558,3438.3,3437.9,1.1812884]
[1641496616356,0.36587475,3438.1,3437.9,1.1812884]
[1641496616556,0.36587475,3438.1,3437.9,1.4148094]
[1641496616757,0.379679,3438.0,3437.9,1.1812884]
[1641496616956,0.36587475,3438.1,3437.9,1.1812884]
[1641496617357,1.70989706,3438.3,3438.0,0.233521]
[1641496617559,0.36587475,3438.1,3438.0,0.233521]
[1641496617760,2.90819412,3438.3,3438.0,0.233521]
[1641496617958,0.36587475,3438.2,3438.0,0.233521]
[1641496618559,0.74555375,3438.2,3437.9,4.24250078]
[1641496618760,0.74555375,3438.2,3438.0,0.233521]
[1641496618959,0.36587475,3438.2,3438.0,0.233521]
[1641496619659,0.379679,3438.1,3437.9,4.24250078]
[1641496620364,0.36587475,3438.2,3437.9,4.47602178]
[1641496620560,0.36587475,3438.0,3437.9,4.47602178]
[1641496620760,0.74555375,3438.1,3437.9,4.47602178]
[1641496620960,0.36587475,3438.1,3437.9,4.47602178]
[1641496621161,0.36587475,3438.1,3437.9,1.4148094]
[1641496621362,0.36587475,3438.1,3437.9,3.59273395]
[1641496622162,0.36587475,3438.1,3438.0,3.35921295]
[1641496624167,0.74555375,3438.1,3438.0,3.35921295]
[1641496624366,0.36587475,3438.1,3438.0,3.35921295]
[1641496624566,2.00479,3438.2,3438.0,3.75639495]
[1641496624768,2.00479,3438.2,3438.1,0.233521]
[1641496625772,2.384469,3438.2,3438.0,0.397182]
[1641496625971,0.36587475,3438.1,3437.8,0.384472]
[1641496626270,2.00479,3438.2,3437.8,2.44826603]
[1641496627171,2.00479,3438.2,3438.0,3.07309458]
[1641496627373,2.00479,3438.2,3438.1,0.630703]
[1641496627771,1.89933381,3438.3,3438.1,3.06634236]
[1641496627970,1.45409706,3438.3,3438.1,3.06634236]
[1641496628270,0.36587475,3438.8,3438.1,3.06634236]
[1641496628474,0.36587475,3438.8,3438.3,2.00479]
[1641496628870,0.36587475,3438.8,3438.4,0.397182]
[1641496629071,0.36587475,3438.8,3438.5,1.41701897]
[1641496629272,0.36587475,3438.8,3438.6,0.630703]
[1641496631173,0.379679,3438.7,3438.5,1.03254697]
[1641496631374,0.36587475,3438.6,3438.5,1.03254697]
[1641496631973,0.36587475,3438.6,3438.4,3.07309458]
[1641496632372,0.36587475,3438.6,3438.4,0.233521]
[1641496632573,2.00479,3438.5,3438.2,3.85474858]
[1641496632774,0.36587475,3438.4,3438.2,3.85474858]
[1641496633173,0.36587475,3438.4,3438.3,0.233521]
[1641496633374,0.36587475,3438.5,3438.3,0.233521]
[1641496633575,0.36587475,3438.5,3438.3,3.30661558]
[1641496633773,0.36587475,3438.5,3438.4,0.397182]
[1641496633974,2.00479,3439.1,3438.4,0.397182]
[1641496634173,0.36587475,3438.7,3438.4,0.397182]
[1641496634574,1.4539533,3438.6,3438.5,0.233521]
[1641496634774,1.81982805,3438.6,3438.5,0.233521]
[1641496635875,1.4539533,3438.6,3438.5,0.233521]
[1641496636077,0.36587475,3438.8,3438.5,0.233521]
[1641496636275,0.36587475,3438.8,3438.6,0.397182]
[1641496636476,0.36587475,3438.8,3438.7,0.233521]
[1641496637075,0.36587475,3438.8,3438.7,1.05875627]
[1641496639876,2.00479,3439.1,3438.7,1.93116173]
[1641496640078,1.45358133,3439.5,3439.0,4.0]
[1641496640276,1.21358133,3439.5,3439.1,0.384472]
[1641496640476,0.36587475,3439.8,3439.1,0.384472]
[1641496640778,0.36587475,3439.5,3439.2,0.397182]
[1641496640978,0.36587475,3439.5,3439.3,0.233521]
[1641496641388,2.00479,3439.8,3439.3,0.233521]
[1641496641389,2.00479,3439.8,3439.4,0.397182]
[1641496641580,2.37066475,3439.8,3439.4,0.397182]
[1641496641977,2.37066475,3439.8,3439.5,0.97599522]
[1641496642179,2.37066475,3439.8,3439.6,0.233521]
[1641496642378,2.37066475,3439.8,3439.7,0.397182]
[1641496642577,2.37066475,3439.8,3439.7,1.082882]
[1641496643776,2.75034375,3439.8,3439.7,1.082882]
[1641496643979,2.37066475,3439.8,3439.7,1.082882]
[1641496645276,2.37066475,3439.8,3439.7,0.397182]
[1641496645277,2.75034375,3439.8,3439.7,0.397182]
[1641496645478,2.37066475,3439.8,3439.7,0.397182]
[1641496646280,2.75034375,3439.8,3439.5,0.97599522]
[1641496646482,0.36587475,3439.6,3439.5,0.97599522]
[1641496646681,0.36587475,3439.6,3439.4,2.45777676]
[1641496647081,0.74555375,3439.6,3439.4,2.45777676]
[1641496647281,0.74555375,3439.6,3439.4,2.69129776]
[1641496647481,0.36587475,3439.6,3439.4,2.69129776]
[1641496647884,0.36587475,3439.6,3439.4,2.45777676]
[1641496648083,0.379679,3439.5,3439.2,0.397182]
[1641496648383,1.45348415,3439.7,3439.3,0.233521]
[1641496648585,0.36587475,3439.4,3439.3,0.233521]
[1641496649087,0.36587475,3439.4,3439.2,0.397182]
[1641496649088,0.36587475,3439.4,3439.1,0.384472]
[1641496649484,2.81389,3439.8,3439.1,0.384472]
[1641496649686,0.36587475,3439.2,3439.1,0.384472]
[1641496650084,0.36587475,3439.2,3439.1,0.617993]
[1641496650987,0.36587475,3439.2,3439.1,0.233521]
[1641496651887,1.81955751,3439.2,3439.1,0.233521]
[1641496652488,2.19923651,3439.2,3439.0,4.85974876]
[1641496652688,1.81955751,3439.2,3439.1,0.233521]
[1641496653092,1.81955751,3439.2,3439.0,2.85495876]
[1641496653289,1.81955751,3439.2,3439.0,2.45777676]
[1641496653489,2.19923651,3439.2,3438.9,3.68964223]
[1641496653690,1.83336176,3439.2,3438.9,3.68964223]
[1641496653990,0.36587475,3439.0,3438.9,3.68964223]
[1641496654192,1.01677475,3439.0,3438.9,3.68964223]
[1641496654594,1.01677475,3439.0,3438.9,3.92316323]
[1641496654791,0.57667475,3439.0,3438.9,5.92795323]
[1641496656193,0.373639,3439.0,3438.9,6.54327105]
[1641496656394,0.373639,3439.0,3438.9,4.53848105]
[1641496656894,0.373639,3439.0,3438.9,3.47017647]
[1641496657494,1.45368276,3439.2,3438.9,3.47017647]
[1641496657695,1.45368276,3439.2,3439.0,0.397182]
[1641496657896,1.45368276,3439.2,3439.1,0.233521]
[1641496658096,1.45368276,3439.2,3439.0,0.397182]
[1641496658795,1.45368276,3439.2,3439.1,0.233521]
[1641496659197,1.45368276,3439.2,3439.1,3.0753122]
[1641496659998,1.45368276,3439.2,3439.1,0.233521]
[1641496660198,1.83336176,3439.2,3439.0,2.401972]
[1641496661199,1.83336176,3439.2,3439.0,5.08020412]
[1641496661699,1.45368276,3439.2,3439.0,5.08020412]
[1641496661900,1.45368276,3439.2,3439.1,0.233521]
[1641496662499,1.45368276,3439.2,3439.1,0.630703]
[1641496663800,1.83336176,3439.2,3439.1,0.397182]
[1641496664000,1.45368276,3439.2,3439.1,0.630703]
[1641496664602,1.45368276,3439.2,3439.1,0.397182]
[1641496664902,1.45368276,3439.2,3439.1,0.630703]
[1641496666501,1.68799349,3439.2,3439.1,0.397182]
[1641496666703,1.30831449,3439.2,3439.1,0.630703]
[1641496667405,1.30831449,3439.2,3439.1,0.397182]
[1641496667605,1.68799349,3439.2,3439.1,0.397182]
[1641496667806,1.30831449,3439.2,3439.1,0.630703]
[1641496668405,1.30831449,3439.2,3439.1,0.397182]
[1641496668805,1.30831449,3439.2,3439.1,0.630703]
[1641496669408,1.68799349,3439.2,3439.1,0.397182]
[1641496669607,1.68799349,3439.2,3439.0,2.00479]
[1641496670007,1.30831449,3439.2,3439.1,0.233521]
[1641496670609,1.30831449,3439.2,3439.1,0.630703]
[1641496676116,1.68799349,3439.2,3439.1,0.397182]
[1641496676516,1.30831449,3439.2,3439.1,0.630703]
[1641496677516,1.45358133,3439.5,3439.1,0.630703]
[1641496680925,1.45358133,3439.5,3439.1,0.397182]
[1641496686433,1.45358133,3439.5,3439.2,3.07541412]
[1641496686634,1.45358133,3439.5,3439.3,0.233521]
[1641496686836,1.45358133,3439.5,3439.3,0.630703]
[1641496688038,1.45358133,3439.5,3439.4,2.46020953]
[1641496689837,1.45358133,3439.5,3439.3,3.09091253]
[1641496690541,0.46927146,3439.5,3439.4,3.59929676]
[1641496690939,0.46927146,3439.5,3439.4,4.41797794]
[1641496691238,0.46927146,3439.5,3439.4,3.59929676]
[1641496692742,3.45825725,3439.8,3439.5,3.60221316]
[1641496692941,2.00479,3439.8,3439.6,5.015175]
[1641496693341,2.00479,3439.8,3439.7,4.41801508]
[1641496693541,2.384469,3439.8,3439.7,4.41801508]
[1641496693741,2.384469,3439.8,3439.7,6.05950629]
[1641496694241,2.00479,3439.8,3439.7,6.05950629]
[1641496694642,2.00479,3440.2,3439.7,8.89497594]
[1641496694842,2.00479,3440.2,3439.7,6.05950629]
[1641496695042,2.00479,3440.2,3439.7,3.59929676]
[1641496695241,2.00479,3440.2,3439.8,3.99647876]
[1641496695649,2.00479,3440.2,3439.9,3.59929676]
[1641496695845,1.879679,3440.1,3439.9,3.59929676]
[1641496696247,0.379679,3440.1,3440.0,0.98430987]
[1641496696447,0.379679,3440.1,3440.0,3.59929676]
[1641496696647,0.379679,3440.1,3440.0,2.14593091]
[1641496696847,1.45346364,3439.8,3439.7,2.54311291]
[1641496697048,1.45346364,3439.8,3439.7,0.397182]
[1641496697247,1.83314264,3439.8,3439.7,0.397182]
[1641496698252,1.45346364,3439.8,3439.7,0.630703]
[1641496698949,1.83314264,3439.8,3439.7,0.397182]
[1641496699150,1.45346364,3439.8,3439.7,0.630703]
[1641496699351,1.45346364,3439.8,3439.7,0.397182]
[1641496700051,1.83314264,3439.8,3439.7,0.397182]
[1641496701354,1.45346364,3439.8,3439.5,3.37256691]
[1641496701552,1.5,3439.6,3439.2,3.07541412]
[1641496701766,1.5,3439.3,3438.6,0.81871832]
[1641496701955,1.5,3439.0,3438.6,0.81871832]
[1641496702151,1.5,3438.8,3438.6,0.81871832]
[1641496702451,1.5,3438.8,3438.4,3.6689212]
[1641496702858,1.45392708,3438.7,3438.6,3.38261242]
[1641496703052,1.83360608,3438.7,3438.6,3.38261242]
[1641496703954,1.83360608,3438.7,3438.0,3.6689212]
[1641496704153,1.5,3438.6,3438.0,3.6689212]
[1641496704353,1.5,3438.6,3437.9,1.69328001]
[1641496704354,0.7154,3438.6,3437.9,1.69328001]
[1641496704553,0.7154,3438.6,3438.1,2.61094377]
[1641496704754,0.7154,3438.6,3438.1,2.99541577]
[1641496704955,0.7154,3438.6,3438.2,2.00479]
[1641496705152,0.7154,3438.6,3438.2,3.22069032]
[1641496705353,2.00479,3439.0,3438.2,3.22069032]
[1641496705754,3.50479,3439.0,3438.2,3.22069032]
[1641496705957,2.00479,3439.0,3438.2,3.22069032]
[1641496706154,2.00479,3439.0,3438.2,5.01291577]
[1641496706558,2.00479,3439.0,3438.2,2.401972]
[1641496706756,1.45401672,3438.5,3438.2,2.401972]
[1641496706958,0.6418,3438.7,3438.3,0.233521]
[1641496707157,0.6418,3438.7,3438.2,1.18138748]
[1641496708258,0.6418,3438.7,3438.4,3.07547975]
[1641496708461,0.459982,3438.6,3438.4,3.07547975]
[1641496710561,0.459982,3438.6,3438.3,5.68642352]
[1641496710965,1.57118503,3438.7,3438.3,5.68642352]
[1641496711363,0.11725287,3438.7,3438.3,2.61094377]
[1641496711966,1.5,3438.9,3438.3,4.7521011]
[1641496712165,1.45400634,3438.5,3438.3,4.7521011]
[1641496712367,1.45400634,3438.5,3438.3,2.60113933]
[1641496712666,1.45400634,3438.5,3438.2,0.78420548]
[1641496712867,1.45400634,3438.5,3438.1,5.68642352]
[1641496713666,1.99310634,3438.5,3438.1,3.07547975]
[1641496714167,1.99310634,3438.5,3438.2,1.62137423]
[1641496714367,0.153218,3438.4,3438.2,1.62137423]
[1641496714970,2.158008,3438.4,3438.2,1.62137423]
[1641496715170,2.158008,3438.4,3437.9,4.25766426]
[1641496715370,2.158008,3438.4,3437.9,0.87456169]
[1641496716871,2.158008,3438.4,3438.0,0.71213376]
[1641496717671,1.45410552,3438.2,3438.0,0.71213376]
[1641496717873,0.153218,3438.1,3438.0,0.71213376]
[1641496718074,1.45410552,3438.2,3438.0,1.17211576]
[1641496718475,1.45417742,3438.1,3438.0,0.71213376]
[1641496718776,1.45417742,3438.1,3437.9,0.87456169]
[1641496719073,1.45417742,3438.1,3437.9,1.33454369]
[1641496719475,1.45417742,3438.1,3437.9,0.87456169]
[1641496719875,0.153218,3438.0,3437.9,3.95040016]
[1641496720676,1.45417742,3438.1,3437.9,0.87456169]
[1641496720977,1.60739542,3438.1,3437.9,1.33454369]
[1641496721377,1.45417742,3438.1,3437.9,1.73172569]
[1641496721575,1.45410552,3438.2,3437.9,1.73172569]
[1641496721778,2.00479,3438.4,3437.9,1.73172569]
[1641496723680,2.00479,3438.4,3438.0,3.07583847]
[1641496723881,2.00479,3438.4,3438.1,0.397182]
[1641496724079,0.153218,3438.3,3438.1,0.397182]
[1641496725182,0.153218,3438.3,3437.9,3.95040016]
[1641496725781,0.153218,3438.3,3437.9,3.07583847]
[1641496725982,1.60731929,3438.3,3437.7,6.45894104]
[1641496726182,1.60731929,3438.3,3437.7,3.07583847]
[1641496726781,0.153218,3438.3,3437.7,3.07583847]
[1641496727284,2.00479,3438.0,3437.7,3.07583847]
[1641496727483,0.153218,3437.9,3437.6,3.07583847]
[1641496727885,0.153218,3437.9,3437.6,1.62143189]
[1641496728081,0.153218,3437.9,3437.7,1.95660547]
[1641496728283,0.153218,3437.8,3437.7,1.95660547]
[1641496728483,2.00479,3438.0,3437.7,2.41658747]
[1641496728786,2.00479,3438.0,3437.7,1.95660547]
[1641496728990,2.00479,3438.0,3437.8,1.95660547]
[1641496729188,0.153218,3437.9,3437.8,1.95660547]
[1641496729589,0.153218,3437.9,3437.7,1.95660547]
[1641496729788,0.153218,3437.9,3437.8,1.95660547]
[1641496730390,0.153218,3437.9,3437.6,0.50217425]
[1641496730590,2.00479,3438.0,3437.6,0.50217425]
[1641496730890,2.00479,3438.0,3437.5,2.00479]
[1641496731291,2.00479,3438.0,3437.4,1.55319482]
[1641496732291,1.45443122,3437.5,3437.4,1.55319482]
[1641496732492,1.45443122,3437.5,3437.4,2.01317682]
[1641496732991,1.39153122,3437.5,3437.4,2.41035882]
[1641496733190,2.00479,3438.0,3437.4,2.41035882]
[1641496733390,2.00479,3438.0,3437.4,2.96535882]
[1641496733590,2.00479,3438.0,3437.5,0.48455231]
[1641496733793,2.00479,3438.0,3437.6,0.397182]
[1641496733991,1.05719585,3437.6,3437.5,0.48455231]
[1641496734195,1.21041385,3437.6,3437.4,1.55319482]
[1641496734390,1.05719585,3437.6,3437.4,1.55319482]
[1641496735190,1.21041385,3437.6,3437.4,1.55319482]
[1641496735791,1.21041385,3437.6,3437.4,2.01317682]
[1641496736191,1.05719585,3437.6,3437.5,0.397182]
[1641496736593,1.05719585,3437.6,3437.4,1.55319482]
[1641496737392,1.05719585,3437.6,3437.4,2.01317682]
[1641496737791,1.21041385,3437.6,3437.4,2.01317682]
[1641496738293,1.05719585,3437.6,3437.4,2.01317682]
[1641496740296,0.153218,3437.5,3437.4,1.55319482]
[1641496740497,1.05719585,3437.6,3437.4,2.01317682]
[1641496740697,1.05719585,3437.6,3437.4,1.55319482]
[1641496741596,1.05719585,3437.6,3437.5,0.857164]
[1641496741797,1.45429584,3437.8,3437.5,0.857164]
[1641496741999,1.01529584,3437.8,3437.5,0.857164]
[1641496743401,0.153218,3437.7,3437.5,0.857164]
[1641496743900,0.153218,3437.7,3437.5,0.397182]
[1641496744105,0.153218,3437.7,3437.5,0.857164]
[1641496744505,0.153218,3437.7,3437.5,0.397182]
[1641496744802,1.01529584,3437.8,3437.5,0.397182]
[1641496745002,1.01529584,3437.8,3437.6,0.459982]
[1641496745203,0.153218,3437.7,3437.5,0.397182]
[1641496745402,0.153218,3437.7,3437.4,1.55319482]
[1641496746203,0.153218,3437.7,3437.5,0.459982]
[1641496746604,0.153218,3437.7,3437.4,1.55319482]
[1641496747006,1.01529584,3437.8,3437.4,1.55319482]
[1641496747805,1.41247784,3437.8,3437.4,1.55319482]
[1641496748807,1.01529584,3437.8,3437.4,1.95037682]
[1641496749406,1.01529584,3437.8,3437.5,0.32354194]
[1641496749611,0.153218,3437.7,3437.5,0.32354194]
[1641496750308,1.5,3437.6,3437.5,0.32354194]
[1641496750509,1.897182,3437.6,3437.5,0.32354194]
[1641496750708,1.897182,3437.6,3437.1,0.32354194]
[1641496751109,1.897182,3437.6,3437.5,0.32354194]
[1641496751307,4.05519,3437.6,3437.2,0.32354194]
[1641496751707,4.05519,3437.6,3437.5,0.32354194]
[1641496751907,4.05519,3437.6,3437.3,0.32354194]
[1641496752110,4.05519,3437.6,3437.5,0.32354194]
[1641496752508,4.05519,3437.6,3436.9,0.32354194]
[1641496752708,4.05519,3437.6,3437.5,0.32354194]
[1641496752908,4.05519,3437.6,3437.0,0.32354194]
[1641496753208,4.05519,3437.6,3437.5,0.32354194]
[1641496753408,4.05519,3437.6,3437.1,0.32354194]
[1641496753708,4.05519,3437.6,3437.5,0.32354194]
[1641496753909,4.05519,3437.6,3437.0,1.92739026]
[1641496754309,4.05519,3437.6,3436.8,0.4456]
[1641496755312,2.00479,3436.9,3436.5,3.38310257]
[1641496755511,3.45945818,3436.9,3436.5,3.38310257]
[1641496756011,4.27805818,3436.9,3436.5,3.38310257]
[1641496756210,0.397182,3436.8,3436.5,3.38310257]
[1641496756410,0.153218,3436.7,3436.5,3.38310257]
[1641496756611,0.397182,3436.6,3436.5,3.38310257]
[1641496757417,2.401972,3436.6,3436.5,1.92815925]
[1641496757811,2.401972,3436.6,3436.1,1.92815925]
[1641496758712,2.401972,3436.6,3436.2,1.10401661]
[1641496758912,2.00479,3436.6,3436.2,1.10401661]
[1641496759112,2.00479,3436.6,3436.3,0.397182]
[1641496759311,2.00479,3436.6,3436.4,0.459982]
[1641496760713,2.00479,3436.6,3436.5,0.397182]
[1641496760913,1.69826678,3436.6,3436.5,2.14460779]
[1641496761113,1.69826678,3436.6,3436.4,1.14958297]
[1641496761317,1.69826678,3436.6,3436.4,0.459982]
[1641496761514,4.00958,3437.3,3436.4,0.459982]
[1641496761914,1.4547105,3436.8,3436.4,0.459982]
[1641496763013,1.4547105,3436.8,3436.3,9.48900172]
[1641496763416,2.00479,3436.4,3436.3,3.6689212]
[1641496763617,3.12039,3436.4,3436.3,3.6689212]
[1641496764015,3.12039,3436.4,3436.2,3.6689212]
[1641496765217,3.12039,3436.4,3436.3,3.0777517]
[1641496765415,3.12039,3436.4,3436.3,1.62271509]
[1641496765916,3.12039,3436.4,3436.3,0.16764052]
[1641496767719,3.12039,3436.4,3435.5,5.03028468]
[1641496768117,3.12039,3436.4,3435.5,0.4382]
[1641496768918,2.56999,3436.4,3435.6,2.09433268]
[1641496769119,2.00479,3436.4,3435.7,0.384472]
[1641496769918,2.00479,3436.4,3435.7,4.384472]
[1641496770221,2.00479,3436.4,3435.6,2.1088701]
[1641496771219,2.00479,3436.4,3435.7,0.384472]
[1641496771423,2.00479,3436.4,3436.2,3.07770827]
[1641496771719,1.45492215,3436.3,3436.0,0.82411995]
[1641496772119,0.459982,3436.2,3436.0,0.82411995]
[1641496772520,2.00479,3436.4,3436.0,0.82411995]
[1641496774123,2.00479,3436.4,3436.1,0.13069765]
[1641496774723,0.459982,3436.3,3436.1,0.13069765]
[1641496774924,2.00479,3436.4,3436.1,0.13069765]
[1641496776128,1.45481631,3436.6,3436.1,32.7122932]
[1641496776327,1.45476104,3436.7,3436.1,32.7122932]
[1641496776527,1.45476104,3436.7,3436.6,4.19313069]
[1641496776727,1.5,3437.7,3436.6,4.82133069]
[1641496777127,1.5,3437.7,3436.7,1.28016212]
[1641496777327,1.5,3437.7,3436.7,1.41085977]
[1641496777527,2.00479,3437.4,3436.8,0.13069765]
[1641496779730,2.00479,3437.4,3436.8,1.57427853]
[1641496781433,2.90884972,3437.5,3437.2,1.5]
[1641496781634,2.48884972,3437.5,3437.4,2.00479]
[1641496781837,1.07978472,3437.5,3437.4,2.71649]
[1641496782033,2.00479,3438.2,3437.4,4.29053274]
[1641496782433,2.00479,3438.2,3437.5,0.01452908]
[1641496782633,2.00479,3438.2,3437.5,1.52999416]
[1641496783232,2.00479,3438.2,3437.6,0.13069765]
[1641496787340,2.00479,3438.2,3437.6,2.05276523]
[1641496787740,2.00479,3438.2,3437.7,0.13069765]
[1641496790042,2.401972,3438.2,3437.7,0.13069765]
[1641496790645,2.401972,3438.2,3437.6,0.13069765]
[1641496791043,2.401972,3438.2,3437.8,0.13069765]
[1641496791241,2.401972,3438.2,3437.7,0.13069765]
[1641496791444,2.401972,3438.2,3437.9,0.13069765]
[1641496791643,0.459982,3438.1,3437.8,0.13069765]
[1641496792243,0.459982,3438.1,3437.6,0.13069765]
[1641496796048,0.459982,3438.1,3437.6,3.20749243]
[1641496796645,0.459982,3438.1,3437.7,0.13069765]
[1641496801253,0.459982,3438.1,3437.6,0.13069765]
[1641496802251,2.401972,3438.2,3437.6,0.13069765]
[1641496802653,2.90813916,3438.3,3437.9,5.5]
[1641496802853,3.916e-05,3438.3,3437.9,5.51452773]
[1641496803151,31.7499,3439.4,3438.3,5.42397668]
[1641496803353,32.35462407,3439.8,3438.5,4.0]
[1641496803555,0.95462407,3439.8,3438.5,4.0]
[1641496803752,2.00479,3439.6,3438.8,2.01931361]
[1641496803952,2.00479,3439.6,3438.8,7.44254762]
[1641496804252,2.00479,3439.6,3438.9,4.78280665]
[1641496804851,2.00479,3439.6,3438.9,4.652109]
[1641496805950,2.389262,3439.6,3438.9,4.652109]
[1641496806451,2.00479,3439.6,3438.9,4.652109]
[1641496806850,1.45358133,3439.5,3438.9,4.652109]
[1641496808053,1.45358133,3439.5,3438.8,2.01931361]
[1641496809654,1.45363627,3439.4,3438.8,2.01931361]
[1641496809853,1.45363627,3439.4,3438.9,0.13057489]
[1641496812455,1.45363627,3439.4,3438.8,2.01931361]
[1641496812856,0.397182,3439.3,3438.8,2.45981361]
[1641496813056,0.781654,3439.3,3438.8,2.45981361]
[1641496813257,0.781654,3439.3,3438.8,2.44529]
[1641496813258,0.397182,3439.3,3438.8,2.44529]
[1641496815757,1.45379688,3439.0,3438.8,2.44529]
[1641496815956,2.90759376,3439.0,3438.8,2.44529]
[1641496818059,2.90759376,3439.0,3438.9,0.13044109]
[1641496819560,2.00479,3439.6,3438.9,0.13044109]
[1641496820464,2.00479,3439.6,3438.8,2.45981382]
[1641496820663,1.45361341,3439.4,3438.8,2.45981382]
[1641496821062,1.45361341,3439.4,3438.9,0.13039839]
[1641496821263,1.45361341,3439.4,3438.9,4.78277739]
[1641496821864,1.45365161,3439.3,3439.0,0.13039839]
[1641496822663,1.45365161,3439.3,3438.8,2.45981382]
[1641496822664,1.45365161,3439.3,3438.9,0.13039839]
[1641496822864,1.45365161,3439.3,3439.1,0.13039839]
[1641496823064,1.91363361,3439.3,3439.0,0.13039839]
[1641496823264,1.45365161,3439.3,3439.0,0.13039839]
[1641496823467,1.45365161,3439.3,3438.8,2.45981382]
[1641496823864,1.45365161,3439.3,3438.9,0.13036432]
[1641496827767,0.397182,3439.2,3438.9,0.13036432]
[1641496828067,0.459982,3439.1,3438.9,0.13036432]
[1641496828466,0.397182,3439.0,3438.8,0.4405]
[1641496828866,0.459982,3438.9,3438.8,0.4405]
[1641496829169,0.459982,3438.9,3438.8,0.13048729]
[1641496829770,0.459982,3438.9,3438.6,0.91045382]
[1641496830170,0.459982,3438.9,3438.4,0.434]
[1641496830370,0.397182,3438.8,3438.4,0.434]
[1641496830570,0.459982,3438.7,3438.4,0.434]
[1641496830772,0.844454,3438.7,3438.4,0.434]
[1641496830969,0.397182,3438.6,3438.4,0.434]
[1641496831572,0.397182,3438.6,3438.5,2.13533651]
[1641496831776,0.397182,3438.6,3438.5,0.13054651]
[1641496831970,2.861954,3438.6,3437.5,0.4325]
[1641496832175,1.5,3438.3,3437.3,5.462]
[1641496832375,1.5,3438.0,3437.1,0.91849373]
[1641496833173,0.6339,3438.3,3436.6,0.4441]
[1641496833873,2.00479,3437.7,3436.9,2.00479]
[1641496834072,0.781654,3437.6,3437.0,1.40198646]
[1641496834274,1.388954,3437.6,3437.0,1.40198646]
[1641496838083,1.45443938,3437.5,3437.0,1.40198646]
[1641496838281,1.45447776,3437.4,3437.0,1.40198646]
[1641496845988,1.02317776,3437.4,3437.0,1.40198646]
[1641496847092,1.45443938,3437.5,3437.0,1.40198646]
[1641496847289,1.45443938,3437.5,3437.0,1.95328646]
[1641496848192,1.45443938,3437.5,3437.3,2.00479]
[1641496848392,2.29889338,3437.5,3437.3,2.00479]
[1641496848797,0.397182,3437.4,3437.3,2.00479]
[1641496849992,0.397182,3437.4,3437.0,1.40198646]
[1641496850191,0.397182,3437.4,3436.5,31.14423343]
[1641496850192,2.00479,3437.3,3436.5,31.14423343]
[1641496850392,1.897182,3437.2,3436.3,31.1951]
[1641496850791,1.897182,3437.2,3436.2,8.53879478]
[1641496851391,1.45488439,3436.4,3436.3,1.43223846]
[1641496851593,3.55432039,3436.4,3436.2,3.07679478]
[1641496852095,4.104226,3436.4,3436.0,0.4461]
[1641496852295,4.104226,3436.4,3436.3,0.13064916]
[1641496852492,4.104226,3436.4,3436.1,0.13064916]
[1641496852893,4.104226,3436.4,3436.3,0.13064916]
[1641496853093,4.104226,3436.4,3436.2,0.13064916]
[1641496853495,4.104226,3436.4,3436.3,0.13064916]
[1641496854093,4.104226,3436.4,3435.9,0.1073345]